[Event "Kragero Resort A 2020"]
[Site "Kragero"]
[Date "2020.02.21"]
[Round "5.23"]
[White "Sgircea, Silvia-Raluca"]
[Black "Woithe, Daniel"]
[Result "1/2-1/2"]
[ECO "D32"]
[WhiteElo "2275"]
[BlackElo "2067"]
[Annotator "NA"]
[PlyCount "70"]
[EventDate "2020.02.19"]
[EventType "swiss"]
[EventCountry "NOR"]
[SourceTitle "playchess.com"]
[Source "ChessBase"]
[SourceQuality "1"]
[TimeControl "5400+30"]

1. Nf3 {[%emt 0:01:12]} d5 {[%emt 0:00:00]} 2. e3 {[%emt 0:00:13]} Nf6 {[%emt 0:00:00]} 3. c4 {[%emt 0:00:06]} e6 {[%emt 0:00:03]} 4. Nc3 {[%emt 0:00:07]} c5 {[%emt 0:01:14]} 5. cxd5 {[%emt 0:01:33]} exd5 {[%emt 0:01:18]} 6. d4 {[%emt 0:02:11]} Nc6 {[%emt 0:00:05]} 7. Be2 {[%emt 0:00:05]} Bd6 {[%emt 0:02:53]} 8. O-O {[%emt 0:00:37] D32: Tarrasch Defence: Sidelines and lines without g3.} O-O {[%emt 0:00:20]} 9. Nb5 {[%emt 0:07:15]} Be7 {[%emt 0:03:18]} 10. dxc5 {[%emt 0:00:37]} Bxc5 {[%emt 0:00:06]} 11. b3 {[%emt 0:00:33]} Re8 {[%emt 0:05:30]} 12. Bb2 {[%emt 0:04:10]} Ne4 {[%emt 0:00:06]} 13. Nbd4 {[%emt 0:01:00]} Bg4 {[%emt 0:07:14] [#]} 14. Nxc6 $146 {[%emt 0:15:39]} ({Predecessor:} 14. Rc1 Rc8 15. Nxc6 bxc6 16. Nd4 Bxe2 17. Qxe2 Bxd4 18. Bxd4 c5 19. Ba1 d4 20. Qd3 {1-0 (42) Kiltti,J (2192)-Pulkkinen,K (2325) Helsinki 1999}) 14... bxc6 {[%emt 0:00:08]} 15. Nd4 {[%emt 0:00:09]} Bxe2 {[%emt 0:01:46]} 16. Qxe2 {[%emt 0:02:26]} Rc8 {[%emt 0:24:57]} 17. Nf5 {[%emt 0:08:46]} Bf8 {[%emt 0:02:25]} 18. Rfd1 {[%emt 0:06:54]} Qg5 {[%emt 0:05:24]} 19. Ng3 {[%emt 0:04:31]} Bc5 {[%emt 0:11:33]} 20. Bd4 $11 {[%emt 0:14:08]} Nxg3 {[%emt 0:08:24]} 21. hxg3 {[%emt 0:00:12]} Bxd4 {[%emt 0:04:34]} 22. Rxd4 {[%emt 0:00:02]} c5 {[%emt 0:00:09]} 23. Qg4 {[%emt 0:02:30]} Qxg4 {[%emt 0:07:46]} 24. Rxg4 {[%emt 0:00:03]} Kf8 {[%emt 0:00:45]} 25. Rd1 {[%emt 0:02:17]} Red8 {[%emt 0:00:34]} 26. Ra4 {[%emt 0:01:45]} Rc7 {[%emt 0:00:39]} 27. e4 {[%emt 0:01:15]} d4 {[%emt 0:00:29]} 28. Rc4 {[%emt 0:00:11]} Re7 {[%emt 0:02:26]} 29. f3 {[%emt 0:04:38]} Re5 {[%emt 0:02:26]} 30. Kf2 {[%emt 0:02:29]} f5 {[%emt 0:01:12]} 31. exf5 {[%emt 0:01:31]} Rxf5 {[%emt 0:00:48]} 32. b4 {[%emt 0:02:45]} cxb4 {[%emt 0:00:16]} 33. Rxb4 {[%emt 0:00:02]} Rc5 {[%emt 0:01:28]} 34. Rb2 {[%emt 0:01:55]} d3 {[%emt 0:01:24]} 35. Rbd2 {[%emt 0:00:07]} Rcd5 {[%emt 0:00:26]} 1/2-1/2

[Event "Kragero Resort A 2020"]
[Site "Kragero"]
[Date "2020.02.21"]
[Round "5.24"]
[White "Stanford, Sheila Barth"]
[Black "Thorgeirsson, Jon Kristinn"]
[Result "1-0"]
[ECO "C57"]
[WhiteElo "2145"]
[BlackElo "2269"]
[Annotator "NA"]
[PlyCount "65"]
[EventDate "2020.02.19"]
[EventType "swiss"]
[EventCountry "NOR"]
[SourceTitle "playchess.com"]
[Source "ChessBase"]
[SourceQuality "1"]
[TimeControl "5400+30"]

1. e4 {[%emt 0:01:51]} e5 {[%emt 0:00:00]} 2. Nf3 {[%emt 0:00:11]} Nc6 {[%emt 0:00:14]} 3. Bc4 {[%emt 0:00:11]} Nf6 {[%emt 0:00:03]} 4. Ng5 {[%emt 0:00:12]} d5 {[%emt 0:00:40]} 5. exd5 {[%emt 0:00:09]} Nd4 {[%emt 0:00:28]} (5... Na5 $11 {keeps the balance.} 6. Bb5+ c6 7. dxc6 bxc6) 6. c3 {[%emt 0:01:13]} b5 {[%emt 0:00:10]} 7. Bf1 {[%emt 0:02:11]} Nxd5 {[%emt 0:00:11]} 8. cxd4 {[%emt 0:00:50]} Qxg5 {[%emt 0:00:08]} 9. Bxb5+ {[%emt 0:00:25]} Kd8 {[%emt 0:00:10]} 10. O-O {[%emt 0:01:03]} Bb7 {[%emt 0:00:51]} 11. Qf3 {[%emt 0:27:44]} e4 {[%emt 0:05:48] C57: Two Knights: Wilkes-Barre/Traxler and 4 Ng5 d5 5 exd5, unusual Black 5th moves.} (11... Rb8 $142) 12. Qh3 {[%emt 0:06:10] [#]} c6 $146 {[%emt 0:06:56]} ({Predecessor:} 12... Bc8 13. d3 Qf6 14. Qh5 Qxd4 15. dxe4 Nf6 16. Qh4 Bd6 17. Nc3 h6 18. Rd1 Qc5 19. Be3 g5 20. Qg3 Qb4 21. e5 {1-0 (21) Charbonneau,P (2509)-Schneider,D (2483) ICC INT 2009}) 13. d3 {[%emt 0:06:33]} Qg6 {[%emt 0:25:45]} 14. dxe4 {[%emt 0:03:34]} Qxe4 {[%emt 0:04:02]} 15. Bd3 {[%emt 0:04:28]} Qxd4 {[%emt 0:00:29]} 16. Nc3 {[%emt 0:05:01]} Bd6 {[%emt 0:02:21]} 17. Nxd5 {[%emt 0:03:16]} Qxd5 {[%emt 0:02:14]} 18. Rd1 {[%emt 0:04:43]} Re8 {[%emt 0:01:34]} 19. Be3 {[%emt 0:00:58]} Kc7 {[%emt 0:02:22]} 20. Rac1 {[%emt 0:11:59]} Rad8 {[%emt 0:06:42]} 21. Bc4 {[%emt 0:02:01]} ({Don't play} 21. Bxh7 $6 Qxa2 22. b3 Qe2 $16) 21... Qe4 {[%emt 0:03:15]} 22. Bxa7 {[%emt 0:07:35]} Bf4 $18 {[%emt 0:02:05]} 23. Qb3 Bxc1 24. Bb6+ Kc8 25. Bxd8 c5 26. Bf1 {[%emt 1:27:55]} Bf4 {[%emt 1:39:29]} 27. Bb6 {[%emt 0:00:30]} Qf5 {[%emt 0:00:30]} 28. h3 {[%emt 0:00:30]} Be5 {[%emt 0:00:30]} 29. Qb5 {[%emt 0:00:30]} Qe6 {[%emt 0:00:30]} 30. Qxc5+ {[%emt 0:00:30]} Kb8 {[%emt 0:00:30]} 31. Ba7+ {[%emt 0:00:30]} Ka8 {[%emt 0:00:30]} 32. Qa5 {[%emt 0:00:30]} Qc6 {[%emt 0:00:30]} 33. Bd4+ {[%emt 0:00:30]} 1-0

[Event "Kragero Resort A 2020"]
[Site "Kragero"]
[Date "2020.02.21"]
[Round "5.25"]
[White "Doluhanova, Evgeniya"]
[Black "Jonsson, Gauti Pall"]
[Result "1-0"]
[ECO "A15"]
[WhiteElo "2258"]
[BlackElo "2027"]
[Annotator "ChessBase"]
[PlyCount "151"]
[EventDate "2020.02.19"]
[EventType "swiss"]
[EventCountry "NOR"]
[SourceTitle "playchess.com"]
[Source "ChessBase"]
[SourceQuality "1"]
[TimeControl "5400+30"]

1. Nf3 {[%emt 0:03:23]} Nf6 {[%emt 0:00:05]} 2. b3 {[%emt 0:00:06]} g6 {[%emt 0:00:58]} 3. Bb2 {[%emt 0:00:10]} Bg7 {[%emt 0:00:13]} 4. c4 {[%emt 0:00:09]} O-O {[%emt 0:01:30]} 5. Nc3 {[%emt 0:00:35]} d6 {[%emt 0:01:22]} 6. d4 {[%emt 0:00:35]} Nbd7 {[%emt 0:03:43]} 7. Qc2 {[%emt 0:04:49]} c6 {[%emt 0:04:59]} 8. e4 {[%emt 0:01:42]} a6 {[%emt 0:06:09]} 9. Be2 {[%emt 0:02:54]} b5 {[%emt 0:02:44]} 10. O-O {[%emt 0:04:10]} Bb7 {[%emt 0:03:37]} 11. e5 {[%emt 0:04:12]} Nh5 {[%emt 0:09:35]} 12. Rad1 {[%emt 0:08:29]} Qc7 {[%emt 0:07:19]} 13. e6 {[%emt 0:04:05]} fxe6 {[%emt 0:01:37]} 14. Ng5 {[%emt 0:00:09]} Nf4 {[%emt 0:03:00]} 15. Bc1 {[%emt 0:00:19]} e5 {[%emt 0:05:48]} 16. Bxf4 {[%emt 0:01:08]} exf4 {[%emt 0:00:24]} 17. Ne6 {[%emt 0:00:19]} Qb6 {[%emt 0:00:04]} 18. Nxf8 {[%emt 0:00:53]} Rxf8 {[%emt 0:00:04]} 19. Bg4 {[%emt 0:01:04]} Nf6 {[%emt 0:01:06]} 20. Be6+ {[%emt 0:00:15]} Kh8 {[%emt 0:00:09]} 21. Ne4 {[%emt 0:02:47]} Nxe4 {[%emt 0:05:48]} 22. Qxe4 {[%emt 0:03:59]} Qa5 {[%emt 0:00:48]} 23. Rd3 {[%emt 0:08:13]} Qxa2 {[%emt 0:01:57]} 24. Rh3 {[%emt 0:00:55]} Rf6 {[%emt 0:00:08]} 25. c5 {[%emt 0:05:00]} Qa3 {[%emt 0:02:25]} 26. Bd7 {[%emt 0:09:02]} Bf8 {[%emt 0:00:58]} 27. Bxc6 {[%emt 0:02:33]} Bxc6 {[%emt 0:09:35]} 28. Qxc6 {[%emt 0:00:13]} dxc5 {[%emt 0:00:08]} 29. Qxc5 {[%emt 0:00:06]} Qxc5 {[%emt 0:00:08]} 30. dxc5 {[%emt 0:00:04]} b4 {[%emt 0:00:21]} 31. Rd1 {[%emt 0:04:51]} Rc6 {[%emt 0:00:23]} 32. Rd5 {[%emt 0:00:52]} e6 {[%emt 0:00:28]} 33. Rd8 {[%emt 0:01:48]} Kg8 {[%emt 0:00:20]} 34. g3 {[%emt 0:01:04]} Rxc5 {[%emt 0:00:53]} 35. gxf4 {[%emt 0:00:08]} Rf5 {[%emt 0:00:15]} 36. Re3 {[%emt 0:01:10]} Kf7 {[%emt 0:00:48]} 37. Re4 {[%emt 0:00:54]} Be7 {[%emt 0:02:45]} 38. Rd7 {[%emt 0:00:37]} Kf6 {[%emt 0:01:57]} 39. Rc7 {[%emt 0:01:02]} Bd6 {[%emt 0:01:29]} 40. Rcc4 {[%emt 0:01:36]} a5 {[%emt 0:03:30]} 41. Kg2 {[%emt 0:02:53]} h6 {[%emt 0:01:56]} 42. h3 {[%emt 0:01:44]} Ke7 {[%emt 0:01:19]} 43. Rc6 {[%emt 0:00:34]} Rd5 {[%emt 0:01:14]} 44. Ra6 {[%emt 0:00:42]} Rf5 {[%emt 0:01:08]} 45. Ra7+ {[%emt 0:03:39]} Kf6 {[%emt 0:00:24]} 46. Ra8 {[%emt 0:00:23]} Ke7 {[%emt 0:02:32]} 47. Kf3 {[%emt 0:05:58]} g5 {[%emt 0:00:57]} 48. Kg4 {[%emt 0:00:11]} gxf4 {[%emt 0:01:23]} 49. Re8+ {[%emt 0:00:45]} Kd7 {[%emt 0:01:00]} 50. R8xe6 {[%emt 0:00:59]} Rg5+ {[%emt 0:01:09]} 51. Kf3 {[%emt 0:01:18]} Rh5 {[%emt 0:00:38]} 52. Ke2 {[%emt 0:03:50]} Rxh3 {[%emt 0:00:49]} 53. Rg6 {[%emt 0:00:05]} f3+ {[%emt 0:01:51]} 54. Kd3 {[%emt 0:01:42]} Bc5 {[%emt 0:02:16]} 55. Rf4 {[%emt 0:00:07]} Ke7 {[%emt 0:02:27]} 56. Rc4 {[%emt 0:02:21]} Rh5 {[%emt 0:00:26]} 57. Rc2 {[%emt 0:00:27]} Kd7 {[%emt 0:01:20]} 58. Ke4 {[%emt 0:00:56]} Kc7 {[%emt 0:03:02]} 59. Rf6 {[%emt 0:02:47]} Kb7 {[%emt 0:02:18]} 60. Kxf3 {[%emt 0:00:37]} Rh3+ {[%emt 0:00:43]} 61. Ke4 {[%emt 0:00:10]} Bb6 {[%emt 0:00:41]} 62. f3 {[%emt 0:00:15]} Rh4+ {[%emt 0:00:11]} 63. f4 {[%emt 0:01:59]} Rh3 {[%emt 0:00:04]} 64. Rf7+ {[%emt 0:00:35]} Ka6 {[%emt 0:00:21]} 65. Rf6 {[%emt 0:00:07]} Re3+ {[%emt 0:01:00]} 66. Kd5 {[%emt 0:00:56]} Rd3+ {[%emt 0:00:18]} 67. Ke4 {[%emt 0:00:28]} Re3+ {[%emt 0:00:32]} 68. Kf5 {[%emt 0:00:14]} Kb5 {[%emt 0:00:59]} 69. Rc8 {[%emt 0:00:21]} Rc3 {[%emt 0:01:11]} 70. Rb8 {[%emt 0:00:09]} Rc6 {[%emt 0:00:09]} 71. Rxc6 {[%emt 0:00:25]} Kxc6 {[%emt 0:00:06]} 72. Ke4 {[%emt 0:01:08]} h5 {[%emt 0:00:27]} 73. f5 {[%emt 0:00:20]} h4 {[%emt 0:00:10]} 74. f6 {[%emt 0:00:10]} h3 {[%emt 0:00:12]} 75. f7 {[%emt 0:00:07]} h2 {[%emt 0:00:07]} 76. Rh8 {[%emt 0:00:12]} 1-0

[Event "Kragero Resort A 2020"]
[Site "Kragero"]
[Date "2020.02.21"]
[Round "5.26"]
[White "Digernes, Magnus"]
[Black "Van Dael, Siem"]
[Result "0-1"]
[ECO "A41"]
[WhiteElo "2017"]
[BlackElo "2257"]
[Annotator "NA"]
[PlyCount "136"]
[EventDate "2020.02.19"]
[EventType "swiss"]
[EventCountry "NOR"]
[SourceTitle "playchess.com"]
[Source "ChessBase"]
[SourceQuality "1"]
[TimeControl "5400+30"]

1. d4 {[%emt 0:00:23]} g6 {[%emt 0:01:37]} 2. c4 {[%emt 0:00:12]} Bg7 {[%emt 0:00:06]} 3. Nc3 {[%emt 0:00:10]} d6 {[%emt 0:00:07]} 4. Nf3 {[%emt 0:00:30]} e5 {[%emt 0:03:11]} 5. dxe5 {[%emt 0:04:55]} dxe5 {[%emt 0:00:40]} 6. Qxd8+ {[%emt 0:00:12]} Kxd8 {[%emt 0:00:10]} 7. Bg5+ {[%emt 0:00:32]} f6 {[%emt 0:00:24]} 8. O-O-O+ {[%emt 0:00:21]} Nd7 {[%emt 0:00:45]} 9. Bh4 {[%emt 0:06:20] A41: 1 d4 d6: Tartakower System and Modern Defence.} Ne7 {[%emt 0:00:56]} 10. Ne4 {[%emt 0:15:00]} Ke8 {[%emt 0:02:34] [#]} 11. g4 $146 {[%emt 0:04:33]} ({Predecessor:} 11. Rxd7 Bxd7 12. Nxf6+ Bxf6 13. Bxf6 Rf8 14. Bxe5 c6 15. e4 Bg4 16. Ng5 Rxf2 17. h3 {0-1 (37) Villalba Velazquez,A-Giuzzi,E Villa Giardino 2002}) 11... Kf7 {[%emt 0:02:15]} 12. g5 {[%emt 0:08:03]} f5 {[%emt 0:02:30]} 13. Nf6 {[%emt 0:10:12]} Ke6 {[%emt 0:00:52]} 14. e3 {[%emt 0:03:04]} Nxf6 {[%emt 0:00:48]} 15. gxf6 {[%emt 0:02:19]} Bxf6 {[%emt 0:00:05]} 16. Bg3 {[%emt 0:08:10]} g5 {[%emt 0:03:03]} 17. h4 {[%emt 0:00:58]} g4 {[%emt 0:02:34]} 18. Ng5+ {[%emt 0:00:12]} Bxg5 {[%emt 0:00:05]} 19. hxg5 {[%emt 0:00:04]} Ng6 {[%emt 0:00:30]} 20. c5 {[%emt 0:06:06]} Ke7 {[%emt 0:03:33]} 21. Bg2 {[%emt 0:06:14]} c6 {[%emt 0:00:35]} 22. Rh6 {[%emt 0:01:30]} Be6 {[%emt 0:03:29]} 23. Rdh1 {[%emt 0:03:15]} Bxa2 {[%emt 0:00:34]} 24. Rxh7+ {[%emt 0:00:17]} Rxh7 {[%emt 0:00:15]} 25. Rxh7+ {[%emt 0:00:07]} Bf7 {[%emt 0:00:05]} 26. Bf1 {[%emt 0:04:40]} Kf8 {[%emt 0:04:06]} 27. Bd3 {[%emt 0:01:10]} e4 {[%emt 0:00:32]} 28. Bc2 {[%emt 0:00:49]} Kg8 {[%emt 0:00:10]} 29. Rh6 {[%emt 0:01:07]} Kg7 {[%emt 0:00:09]} 30. Rh1 {[%emt 0:03:54]} Rd8 {[%emt 0:03:04]} 31. Bd6 {[%emt 0:01:54]} Rh8 {[%emt 0:01:38]} 32. Rd1 {[%emt 0:01:19]} Bd5 {[%emt 0:03:18]} 33. Kd2 {[%emt 0:01:33]} Kf7 {[%emt 0:01:30]} 34. Kc3 {[%emt 0:01:15]} Ke6 {[%emt 0:00:25]} 35. Kd4 $17 {[%emt 0:02:08]} Nh4 {[%emt 0:02:53]} 36. Ra1 {[%emt 0:01:27]} a6 {[%emt 0:00:25]} 37. Bf4 {[%emt 0:00:35]} Rh5 {[%emt 0:01:12]} 38. Ra4 {[%emt 0:01:46]} Nf3+ {[%emt 0:01:07]} 39. Kc3 {[%emt 0:00:09]} Nxg5 {[%emt 0:00:06]} 40. Rb4 {[%emt 0:00:13]} Nh3 {[%emt 0:00:06]} 41. Bg3 {[%emt 0:00:39]} Rh7 {[%emt 0:00:07]} 42. Rd4 {[%emt 0:01:11]} Ng1 {[%emt 0:00:22]} 43. Rd2 {[%emt 0:00:40]} Nf3 {[%emt 0:00:43]} 44. Rd1 {[%emt 0:00:07]} Ne5 {[%emt 0:00:07]} 45. b3 {[%emt 0:01:42]} Nd7 {[%emt 0:03:10]} 46. Kb4 {[%emt 0:00:21]} a5+ {[%emt 0:00:30]} 47. Kxa5 {[%emt 0:00:22]} Nxc5 {[%emt 0:00:06]} 48. Kb6 {[%emt 0:00:41]} Na6 {[%emt 0:01:35]} 49. Rd4 {[%emt 0:00:33]} c5 {[%emt 0:01:16]} 50. Rd2 {[%emt 0:00:13]} Rh1 {[%emt 0:00:13]} 51. Bd1 {[%emt 0:00:20]} Rf1 {[%emt 0:00:33]} 52. Be2 {[%emt 0:00:12]} Rb1 {[%emt 0:03:28]} 53. Bxa6 {[%emt 0:01:06]} bxa6 {[%emt 0:00:05]} 54. Kxc5 {[%emt 0:00:09]} Rxb3 {[%emt 0:00:05]} 55. Rd1 {[%emt 0:01:02]} Rb5+ {[%emt 0:00:18]} 56. Kd4 {[%emt 0:00:13]} a5 {[%emt 0:00:05]} 57. Ra1 {[%emt 0:00:21]} Bb3 {[%emt 0:00:46]} 58. Rh1 {[%emt 0:00:56]} Rd5+ {[%emt 0:03:28]} 59. Kc3 {[%emt 0:00:07]} Rd3+ {[%emt 0:00:02]} 60. Kb2 {[%emt 0:00:07]} a4 {[%emt 0:00:29]} 61. Rh6+ {[%emt 0:00:24]} Kd5 {[%emt 0:00:15]} 62. Rf6 {[%emt 0:00:52]} Kc4 {[%emt 0:00:09]} 63. Rc6+ {[%emt 0:00:49]} Kb5 {[%emt 0:00:10]} 64. Rf6 {[%emt 0:00:34]} Rd2+ {[%emt 0:00:09]} 65. Kc1 {[%emt 0:00:12]} Rc2+ {[%emt 0:00:25]} 66. Kb1 {[%emt 0:00:13]} a3 {[%emt 0:00:19]} 67. Rxf5+ {[%emt 0:00:23]} Ka4 {[%emt 0:00:05]} 68. Rf8 {[%emt 0:01:19]} a2+ {[%emt 0:00:09]} 0-1

[Event "Kragero Resort A 2020"]
[Site "Kragero"]
[Date "2020.02.21"]
[Round "5.27"]
[White "Heimisson, Hilmir Freyr"]
[Black "Manukyan, Hayk T."]
[Result "1-0"]
[ECO "A11"]
[WhiteElo "2250"]
[BlackElo "1824"]
[Annotator "ChessBase"]
[PlyCount "29"]
[EventDate "2020.02.19"]
[EventType "swiss"]
[EventCountry "NOR"]
[SourceTitle "playchess.com"]
[Source "ChessBase"]
[SourceQuality "1"]
[TimeControl "5400+30"]

1. Nf3 {[%emt 0:00:00]} d5 {[%emt 0:00:00]} 2. c4 {[%emt 0:00:36]} c6 {[%emt 0:00:00]} 3. g3 {[%emt 0:00:07]} Nf6 {[%emt 0:00:02]} 4. Bg2 {[%emt 0:00:13]} Bg4 {[%emt 0:02:36]} 5. Ne5 {[%emt 0:00:26]} Bf5 {[%emt 0:00:29]} 6. cxd5 {[%emt 0:08:09]} cxd5 {[%emt 0:00:20]} 7. Qa4+ {[%emt 0:00:38]} Nbd7 {[%emt 0:14:07]} 8. Nc3 {[%emt 0:03:51]} Qc7 {[%emt 0:11:09]} 9. d4 {[%emt 0:08:18]} e6 {[%emt 0:00:52]} 10. O-O {[%emt 0:17:38]} Qb6 {[%emt 0:09:38]} 11. e4 {[%emt 0:16:55]} dxe4 {[%emt 0:09:03]} 12. g4 {[%emt 0:00:15]} Bxg4 {[%emt 0:26:34]} 13. Nxe4 {[%emt 0:00:13]} Ke7 {[%emt 0:12:39]} 14. Bg5 {[%emt 0:02:15]} Rd8 {[%emt 0:05:14]} 15. Nxg4 {[%emt 0:00:21]} 1-0

[Event "Kragero Resort A 2020"]
[Site "Kragero"]
[Date "2020.02.21"]
[Round "6.10"]
[White "Hauge, Lars Oskar"]
[Black "Alinasab, Mobina"]
[Result "1-0"]
[ECO "B23"]
[WhiteElo "2472"]
[BlackElo "2333"]
[Annotator "RC"]
[PlyCount "57"]
[EventDate "2020.02.19"]
[EventType "swiss"]
[EventCountry "NOR"]
[SourceTitle "playchess.com"]
[Source "ChessBase"]
[SourceQuality "1"]
[TimeControl "5400+30"]

1. e4 {[%emt 0:00:00]} c5 {[%emt 0:00:00]} 2. Nc3 {[%emt 0:00:00]} Nc6 {[%emt 0:00:10]} 3. f4 {[%emt 0:00:25]} d6 {[%emt 0:00:53]} 4. Nf3 {[%emt 0:00:47]} g6 {[%emt 0:00:34]} 5. Bc4 {[%emt 0:01:33]} Bg7 {[%emt 0:00:08]} 6. O-O {[%emt 0:00:25]} e6 {[%emt 0:00:19]} 7. d4 {[%emt 0:02:11]} Nxd4 {[%emt 0:10:15]} 8. Be3 {[%emt 0:01:28]} Qb6 {[%emt 0:18:35]} 9. e5 {[%emt 0:05:32]} Nxf3+ {[%emt 0:21:24]} 10. Qxf3 {[%emt 0:00:23]} d5 {[%emt 0:00:25]} 11. Bb5+ {[%emt 0:08:02]} Kf8 {[%emt 0:00:15]} 12. b4 {[%emt 0:23:23]} d4 {[%emt 0:07:56]} 13. bxc5 {[%emt 0:06:01]} Qxc5 {[%emt 0:00:06]} 14. Rad1 {[%emt 0:01:49]} Qxc3 {[%emt 0:00:29]} 15. Bxd4 {[%emt 0:00:37]} Qc7 {[%emt 0:00:24]} 16. Qa3+ {[%emt 0:02:39]} Ne7 {[%emt 0:00:06]} 17. Bc5 {[%emt 0:00:17]} f5 {[%emt 0:00:10]} 18. Rd6 {[%emt 0:02:56]} b6 {[%emt 0:01:56]} 19. Rc6 {[%emt 0:01:53]} Qb7 {[%emt 0:00:21]} 20. Bd6 {[%emt 0:01:14]} a6 {[%emt 0:08:09]} 21. Rc7 {[%emt 0:06:18]} axb5 {[%emt 0:00:04]} 22. Rxb7 {[%emt 0:01:01]} Rxa3 {[%emt 0:00:52]} 23. Rxe7 {[%emt 0:00:06]} Ra4 {[%emt 0:08:27]} 24. Rc7+ {[%emt 0:00:27]} Ke8 {[%emt 0:00:33]} 25. Rxc8+ {[%emt 0:00:12]} Kf7 {[%emt 0:00:04]} 26. Rc7+ {[%emt 0:00:06]} Kg8 {[%emt 0:00:04]} 27. Rd1 {[%emt 0:00:19]} h5 {[%emt 0:00:13]} 28. Be7 {[%emt 0:00:24]} Rxf4 {[%emt 0:05:58]} 29. Bf6 {[%emt 0:00:46]} 1-0

[Event "Kragero Resort A 2020"]
[Site "Kragero"]
[Date "2020.02.21"]
[Round "6.11"]
[White "Haug, Johannes"]
[Black "Mikalsen, Erlend"]
[Result "1/2-1/2"]
[ECO "E16"]
[WhiteElo "2426"]
[BlackElo "2364"]
[Annotator "ChessBase"]
[PlyCount "87"]
[EventDate "2020.02.19"]
[EventType "swiss"]
[EventCountry "NOR"]
[SourceTitle "playchess.com"]
[Source "ChessBase"]
[SourceQuality "1"]
[TimeControl "5400+30"]

1. d4 {[%emt 0:00:00]} Nf6 {[%emt 0:00:45]} 2. c4 {[%emt 0:00:00]} e6 {[%emt 0:00:04]} 3. Nf3 {[%emt 0:00:00]} b6 {[%emt 0:00:03]} 4. g3 {[%emt 0:00:00]} Ba6 {[%emt 0:00:03]} 5. Nbd2 {[%emt 0:00:00]} Bb7 {[%emt 0:00:24]} 6. Bg2 {[%emt 0:00:01]} Be7 {[%emt 0:00:06]} 7. O-O {[%emt 0:00:41]} O-O {[%emt 0:00:09]} 8. Qc2 {[%emt 0:00:07]} d5 {[%emt 0:00:14]} 9. cxd5 {[%emt 0:00:16]} exd5 {[%emt 0:00:12]} 10. b3 {[%emt 0:00:14]} c5 {[%emt 0:05:22]} 11. Bb2 {[%emt 0:00:12]} Nc6 {[%emt 0:00:53]} 12. Rac1 {[%emt 0:02:44]} Re8 {[%emt 0:11:29]} 13. Rfe1 {[%emt 0:05:26]} Bf8 {[%emt 0:04:48]} 14. e3 {[%emt 0:07:59]} a5 {[%emt 0:08:24]} 15. dxc5 {[%emt 0:10:30]} bxc5 {[%emt 0:00:52]} 16. Qf5 {[%emt 0:00:55]} Bc8 {[%emt 0:13:52]} 17. Qb1 {[%emt 0:08:46]} h6 {[%emt 0:08:15]} 18. Nh4 {[%emt 0:07:41]} Be6 {[%emt 0:00:36]} 19. f4 {[%emt 0:17:56]} Ra7 {[%emt 0:01:11]} 20. Bxf6 {[%emt 0:03:49]} Qxf6 {[%emt 0:06:58]} 21. f5 {[%emt 0:00:59]} Bc8 {[%emt 0:00:05]} 22. Bxd5 {[%emt 0:01:17]} Nb4 {[%emt 0:05:51]} 23. Bg2 {[%emt 0:04:47]} Rd7 {[%emt 0:02:07]} 24. Ne4 {[%emt 0:02:27]} Qe5 {[%emt 0:00:21]} 25. Nf2 {[%emt 0:00:37]} Rdd8 {[%emt 0:05:23]} 26. a3 {[%emt 0:05:55]} Nd5 {[%emt 0:00:04]} 27. Nf3 {[%emt 0:01:13]} Qb8 {[%emt 0:03:40]} 28. e4 {[%emt 0:01:19]} Nb6 {[%emt 0:00:16]} 29. e5 {[%emt 0:02:28]} c4 {[%emt 0:03:08]} 30. b4 {[%emt 0:04:04]} axb4 {[%emt 0:00:11]} 31. axb4 {[%emt 0:00:01]} Nd5 {[%emt 0:00:55]} 32. Rxc4 {[%emt 0:02:02]} Ba6 {[%emt 0:00:06]} 33. Rd4 {[%emt 0:02:04]} Nc3 {[%emt 0:05:08]} 34. Qb2 {[%emt 0:01:28]} Rxd4 {[%emt 0:00:21]} 35. Nxd4 {[%emt 0:00:05]} Qxb4 {[%emt 0:00:21]} 36. Qxb4 {[%emt 0:05:04]} Bxb4 {[%emt 0:00:08]} 37. e6 {[%emt 0:00:04]} Bc5 {[%emt 0:02:50]} 38. exf7+ {[%emt 0:01:29]} Kxf7 {[%emt 0:00:04]} 39. Ne6 {[%emt 0:00:09]} Bc4 {[%emt 0:04:35]} 40. Bf3 {[%emt 0:00:36]} Kf6 {[%emt 0:01:30]} 41. Kg2 {[%emt 0:01:33]} Bxf2 {[%emt 0:01:13]} 42. Kxf2 {[%emt 0:00:29]} Bxe6 {[%emt 0:00:08]} 43. fxe6 {[%emt 0:00:07]} Rxe6 {[%emt 0:00:09]} 44. Rc1 {[%emt 0:00:30]} 1/2-1/2